{"text_format":"1","workbook":"xlsx","n_sheets":14,"sheets":["Cover","Info","Results","E01","E02","E03","E04","E05","E06","E07","E08","E09","E10","About"],"not_rendered":{"charts":11,"images":37,"macros":1,"external_links":0,"defined_names":15,"comments":0,"pivot_tables":0},"unopened":[],"bounds":{"document_bytes":16777216,"sheet_cells":100000,"rows_first":2000,"rows_last":500,"rows_between":2000,"halvings":0,"cell_chars":16384,"cell_head_chars":4096},"cells_cut":0,"cells_raw":0,"read":"whole","date_system":"1900"}

{"sheet":"Cover","index":0,"n_rows":0,"n_cols":0,"rows_kept":0,"cut":false,"hidden":false,"merged":[]}

{"sheet":"Info","index":1,"n_rows":39,"n_cols":4,"rows_kept":39,"cut":false,"hidden":false,"merged":[[0,0,0,16383],[38,1,38,3],[39,1,39,3],[2,1,2,2],[3,1,3,2],[4,1,4,2],[5,1,5,2],[6,1,6,2],[37,1,37,3],[31,1,31,2],[32,1,32,2],[33,1,33,2],[34,1,34,2],[35,1,35,2]]}
[]
[]
[null,"Esta Evaluación",null,"Respuesta"]
[null,"Nombre de la ciudad"]
[null,"Tipo de ciudad (municipio, áreas metropolitanas, etc)"]
[null,"País"]
[null,"Fecha de evaluación"]
[]
[null,"Perfil de la ciudad (necesario)","Respuesta","Fuente de los datos"]
[null,"Título del nivel más alto de autoridad (ej: alcalde, etc)"]
[null,"Población total de la ciudad:   "]
[null,"Superficie de la ciudad (en kilómetros cuadrados):"]
[null,"Densidad de población (por kilómetro cuadrado): "]
[null,"Población joven (15-24) (%):"]
[null,"Población de la tercera edad (mayores de 65 años) (%):"]
[null,"Género (hogares con jefas de familia):"]
[null,"Tasa de alfabetismo (% de la población que lee y escribe):"]
[null,"Índice de pobreza (% población que no vive en la pobreza):"]
[null,"Ingreso familiar promedio (en dólares estadounidenses):"]
[null,"Residentes que no son ciudadanos (%):"]
[null,"Riesgo de desastres más probable conocido: "]
[null,"Desastre más severo (conocido): "]
[]
[null,"Perfil de ciudad (opcional)","Respuesta","Fuente de los datos"]
[null,"Cantidad total de hogares: "]
[null,"Personas por unidad familiar:"]
[null,"Costo de vida (en dólares estadounidenses):"]
[null,"PIB per cápita del país (en dólares estadounidenses):"]
[null,"Coeficiente de GINI:"]
[null,"PIB per cápita de la ciudad (en dólares estadounidenses):"]
[]
[null,"Equipo de Reducción del Riesgo de Desastres y Resiliencia del Gobierno Local",null,"Respuesta"]
[null,"Nombre de la persona que dirige / coordina la finalización cuadro de mando:"]
[null,"Organización:"]
[null,"Detalles de contacto:"]
[null,"Voluntad para compartir resultados o ser utilizado como ejemplo / estudio de caso por UNDRR y socios:"]
[]
[null,"Información de despositarios "]
[null,"Por favor, liste todos los depositarios que han apoyado esta evaluación abajo."]

{"sheet":"Results","index":2,"n_rows":152,"n_cols":13,"rows_kept":152,"cut":false,"hidden":false,"merged":[[94,3,94,5],[102,3,102,6],[97,2,97,5],[98,2,98,5],[79,2,79,5],[113,1,113,3],[96,2,96,5],[104,2,104,5],[105,2,105,5],[99,2,99,5],[111,1,111,2],[91,2,91,5],[41,2,41,5],[42,2,42,5],[43,2,43,5],[52,2,52,5],[59,2,59,5],[65,2,65,5],[57,3,57,6],[63,3,63,6],[69,3,69,6],[77,3,77,6],[73,2,73,5],[50,3,50,6],[87,3,87,6],[71,2,71,5],[72,2,72,5],[80,2,80,5],[81,2,81,5],[34,2,34,5],[89,2,89,5],[90,2,90,5],[39,3,39,6],[74,2,74,5]]}
[]
[]
[]
[]
[]
[]
[]
[]
[]
[]
[]
[]
[]
[]
[]
[]
[]
[]
[]
[]
[]
[]
[]
[]
[]
[]
[]
[]
[]
[]
[]
[]
[null,"Aspecto esencial  01: ",null,{"$f":"D118","v":"Organizarse para la resiliencia - Integración de la salud pública y la gobernabilidad"}]
[]
[null,{"$f":"C130","v":"A1.1"},{"$f":"E130","v":"El sector de la salud forma parte de la gobernabilidad para la gestión multisectorial del riesgo."},null,null,null,{"$f":"F130","v":0}]
[]
[]
[]
[]
[null,"Aspecto esencial 02: ",null,{"$f":"D119","v":"Identificar, comprender y utilizar los escenarios de riesgos actuales y futuros - Integración de la salud pública y los escenarios de desastres\n "}]
[]
[null,{"$f":"C131","v":"A2.1"},{"$f":"E131","v":"Inclusión de un amplio abanico de emergencias y los desastres (por ejemplo, brotes epidémicos, pandemias, hambrunas, escasez de agua, etc.) como un escenario de desastre por sí mismo. "},null,null,null,{"$f":"F131","v":0}]
[null,{"$f":"C132","v":"A2.2"},{"$f":"E132","v":"Inclusión de los efectos predecibles en la salud pública, a partir de otros escenarios del riesgo de desastres (tales como inundaciones, olas de calor y terremotos). "},null,null,null,{"$f":"F132","v":0}]
[null,{"$f":"C133","v":"A2.3"},{"$f":"E133","v":"Inclusión de enfermedades crónicas preexistentes, incluidas enfermedades no transmisible, en la planificación en caso de desastres."},null,null,null,{"$f":"F133","v":0}]
[]
[]
[]
[]
[]
[]
[null,"Aspecto esencial 03:",null,{"$f":"D120","v":"Fortalecer la capacidad financiera para la resiliencia - Integración de la salud pública y las finanzas"}]
[]
[null,{"$f":"C134","v":"A3.1"},{"$f":"E134","v":"Financiamiento para los aspectos de resiliencia de la salud pública."},null,null,null,{"$f":"F134","v":0}]
[]
[]
[]
[]
[null,"Aspecto esencial 04:",null,{"$f":"D121","v":"Promover el desarrollo urbano resiliente - Integración de la salud pública y los códigos de construcción/ordenamiento territorial"}]
[]
[null,{"$f":"C135","v":"A4.1"},{"$f":"E135","v":"Conformidad con los códigos de ordenamiento territorial y construcción resiliente por parte de los principales centros de salud.  "},null,null,null,{"$f":"F135","v":0}]
[]
[]
[]
[null,"Aspecto esencial 05:",null,{"$f":"D122","v":"Proteger las zonas naturales de amortiguación para mejorar las funciones de protección de los ecosistemas - Gestión de servicios de los ecosistemas que repercuten en la salud pública"}]
[]
[null,{"$f":"C136","v":"A5.1"},{"$f":"E136","v":"Preservación y gestión de servicios de ecosistemas que ofrecen beneficios a la salud pública. "},null,null,null,{"$f":"F136","v":0}]
[]
[]
[]
[null,"Aspecto esencial 06:",null,{"$f":"D123","v":"Fortalecer la capacidad institucional para la resiliencia - Integración de la salud pública y capacidad institucional"}]
[]
[null,{"$f":"C137","v":"A6.1"},{"$f":"E137","v":"Disponibilidad de personal de salud pública con competencias y destrezas relevantes para la resiliencia ante desastres."},null,null,null,{"$f":"F137","v":0}]
[null,{"$f":"C138","v":"A6.2"},{"$f":"E138","v":"Socialización de datos sobre el sistema de salud pública con otros grupos interesados. "},null,null,null,{"$f":"F138","v":0}]
[null,{"$f":"C139","v":"A6.2.1"},{"$f":"E139","v":"Socialización de otros datos con los grupos interesados en el sistema de salud pública."},null,null,null,{"$f":"F139","v":0}]
[null,{"$f":"C140","v":"A6.2.2"},{"$f":"E140","v":"Protección y acceso a registros individuales de salud."},null,null,null,{"$f":"F140","v":0}]
[]
[]
[null,"Aspecto esencial 07: ",null,{"$f":"D124","v":"Comprender y fortalecer la capacidad social para la resiliencia - Integración de la salud pública y capacidad de la sociedad"}]
[]
[null,{"$f":"C141","v":"A7.1"},{"$f":"E141","v":"Eficacia del sistema de salud pública para hacer partícipe a la comunidad en el contexto de la gestión del riesgo de desastres. "},null,null,null,{"$f":"F141","v":0}]
[null,{"$f":"C142","v":"A7.1.2"},{"$f":"E142","v":"Acceso comunitario y confianza en la información sobre salud pública."},null,null,null,{"$f":"F142","v":0}]
[null,{"$f":"C143","v":"A7.2"},{"$f":"E143","v":"Habilidad de la comunidad para “regresar a la normalidad” — salud mental."},null,null,null,{"$f":"F143","v":0}]
[]
[]
[]
[]
[]
[null,"Aspecto esencial 08:",null,{"$f":"D125","v":"Aumentar la resiliencia de la infraestructura vital - Integración de la salud pública y resiliencia de la infraestructura"}]
[]
[null,{"$f":"C144","v":"A8.1"},{"$f":"E144","v":"Fortalecimiento de los elementos estructurales y no estructurales de seguridad y funcionalidad de la infraestructura de salud pública que no se toman en consideración en el aspecto esencial 8. "},null,null,null,{"$f":"F144","v":0}]
[null,{"$f":"C145","v":"A8.2"},{"$f":"E145","v":"Capacidad de reacción para la infraestructura de salud pública, cuando no se toman en consideración bajo el aspecto esencial 8."},null,null,null,{"$f":"F145","v":0}]
[null,{"$f":"C146","v":"A8.3"},{"$f":"E146","v":"Continuidad de la atención a aquellas personas que ya están enfermas, cuando no se tengan en cuenta en el aspecto esencial 8. "},null,null,null,{"$f":"F146","v":0}]
[]
[]
[null,"Aspecto esencial 09:",null,{"$f":"D126","v":"Asegurar una respuesta efectiva ante los desastres - Integración de la salud pública y respuesta en caso de desastres"}]
[]
[null,{"$f":"C147","v":"A9.1"},{"$f":"E147","v":"Sistemas de alerta temprana para emergencias relacionadas con la salud "},null,null,null,{"$f":"F147","v":0}]
[null,{"$f":"C148","v":"A9.2"},{"$f":"E148","v":"Integración de la salud pública en la gestión de emergencias. "},null,null,null,{"$f":"F148","v":0}]
[null,{"$f":"C149","v":"A9.3"},{"$f":"E149","v":"Consideración de las poblaciones en mayor riesgo o de aquellas personas que viven en el hogar con condiciones preexistentes. "},null,null,null,{"$f":"F149","v":0}]
[null,{"$f":"C150","v":"A9.4"},{"$f":"E150","v":"Habilidad de entregar suministros de salud pública a personas con necesidades. "},null,null,null,{"$f":"F150","v":0}]
[]
[]
[null,"Aspecto esencial 10: ",null,{"$f":"D127","v":"Acelerar el proceso de recuperación y reconstruir mejor - Integración de la salud pública y recuperación/reconstrucción mejor"}]
[]
[null,{"$f":"C151","v":"A10.1"},{"$f":"E151","v":"Mitigación de los impactos a largo plazo en el bienestar y la salud pública."},null,null,null,{"$f":"F151","v":0}]
[null,{"$f":"C152","v":"A10.2"},{"$f":"E152","v":"Aprendizaje y mejoramiento."},null,null,null,{"$f":"F152","v":0}]
[]
[]
[]
[]
[]
[null,{"$f":"TODAY()","v":"2020-09-16"},null,null,null,null,null,{"$f":"Info!$B$4","v":"Nombre de la ciudad"},{"$f":"Info!$D$4","v":0},null,{"$f":"Info!$B$6","v":"País"},{"$f":"Info!$D$6","v":0}]
[]
[]
[]
[]
[null,null,"Label","Name",null,"Essential","TotalScore","MaxScore","Label"]
[null,null,"S1","Organizarse para la resiliencia - Integración de la salud pública y la gobernabilidad",null,"E1",{"$f":"SUMIFS($F$130:$F$189,$B$130:$B$189,F118)","v":0},{"$f":"COUNTIFS($B$130:$B$152,F118)*5","v":5},"01",null,{"$f":"SUM(G118:G127)","v":0},{"$f":"K118/K119","v":0},{"$f":"CONCATENATE(\"La puntuación total para esta evaluación es \",SUM(G118:G127),\" / \",SUM(H118:H127))","v":"La puntuación total para esta evaluación es 0 / 115"}]
[null,null,"S2","Identificar, comprender y utilizar los escenarios de riesgos actuales y futuros - Integración de la salud pública y los escenarios de desastres\n ",null,"E2",{"$f":"SUMIFS($F$130:$F$1010,$B$130:$B$1010,F119)","v":0},15,"02",null,{"$f":"SUM(H118:H127)","v":115},{"$f":"1-L118","v":1}]
[null,null,"S3","Fortalecer la capacidad financiera para la resiliencia - Integración de la salud pública y las finanzas",null,"E3",0,5,"03"]
[null,null,"S4","Promover el desarrollo urbano resiliente - Integración de la salud pública y los códigos de construcción/ordenamiento territorial",null,"E4",0,5,"04"]
[null,null,"S5","Proteger las zonas naturales de amortiguación para mejorar las funciones de protección de los ecosistemas - Gestión de servicios de los ecosistemas que repercuten en la salud pública",null,"E5",0,5,"05"]
[null,null,"S6","Fortalecer la capacidad institucional para la resiliencia - Integración de la salud pública y capacidad institucional",null,"E6",0,20,"06"]
[null,null,"S7","Comprender y fortalecer la capacidad social para la resiliencia - Integración de la salud pública y capacidad de la sociedad",null,"E7",0,15,"07"]
[null,null,"S8","Aumentar la resiliencia de la infraestructura vital - Integración de la salud pública y resiliencia de la infraestructura",null,"E8",0,15,"08"]
[null,null,"S9","Asegurar una respuesta efectiva ante los desastres - Integración de la salud pública y respuesta en caso de desastres",null,"E9",0,20,"09"]
[null,null,"S10","Acelerar el proceso de recuperación y reconstruir mejor - Integración de la salud pública y recuperación/reconstrucción mejor",null,"E10",0,10,"10"]
[]
[null,"Section","Ref",null,"Question","SelectedScore","ThisScore"]
[null,"E1",{"$f":"'E01'!$G$5","v":"A1.1"},null,{"$f":"'E01'!I5","v":"El sector de la salud forma parte de la gobernabilidad para la gestión multisectorial del riesgo."},{"$f":"IF(G130=\"\",0,IF(G130=0,0,6-G130))","v":0},{"$f":"OFFSET('E01'!$E$1,MATCH(C130,'E01'!G:G,0)+3,0)","v":0}]
[null,"E2",{"$f":"'E02'!$G$5","v":"A2.1"},null,{"$f":"'E02'!I5","v":"Inclusión de un amplio abanico de emergencias y los desastres (por ejemplo, brotes epidémicos, pandemias, hambrunas, escasez de agua, etc.) como un escenario de desastre por sí mismo. "},{"$f":"IF(G131=\"\",0,IF(G131=0,0,6-G131))","v":0},{"$f":"OFFSET('E02'!$E$1,MATCH(C131,'E02'!G:G,0)+3,0)","v":0}]
[null,"E2",{"$f":"'E02'!$G$18","v":"A2.2"},null,{"$f":"'E02'!$I$18","v":"Inclusión de los efectos predecibles en la salud pública, a partir de otros escenarios del riesgo de desastres (tales como inundaciones, olas de calor y terremotos). "},0,{"$f":"OFFSET('E02'!$E$1,MATCH(C132,'E02'!G:G,0)+3,0)","v":0}]
[null,"E2",{"$f":"'E02'!$G$31","v":"A2.3"},null,{"$f":"'E02'!$I$31","v":"Inclusión de enfermedades crónicas preexistentes, incluidas enfermedades no transmisible, en la planificación en caso de desastres."},0,{"$f":"OFFSET('E02'!$E$1,MATCH(C133,'E02'!G:G,0)+3,0)","v":0}]
[null,"E3",{"$f":"'E03'!$G$5","v":"A3.1"},null,{"$f":"'E03'!$I$5","v":"Financiamiento para los aspectos de resiliencia de la salud pública."},0,{"$f":"OFFSET('E03'!$E$1,MATCH(C134,'E03'!G:G,0)+3,0)","v":0}]
[null,"E4",{"$f":"'E04'!$G$5","v":"A4.1"},null,{"$f":"'E04'!$I$5","v":"Conformidad con los códigos de ordenamiento territorial y construcción resiliente por parte de los principales centros de salud.  "},0,{"$f":"OFFSET('E04'!$E$1,MATCH(C135,'E04'!G:G,0)+3,0)","v":0}]
[null,"E5",{"$f":"'E05'!$G$5","v":"A5.1"},null,{"$f":"'E05'!$I$5","v":"Preservación y gestión de servicios de ecosistemas que ofrecen beneficios a la salud pública. "},0,{"$f":"OFFSET('E05'!$E$1,MATCH(C136,'E05'!G:G,0)+3,0)","v":0}]
[null,"E6",{"$f":"'E06'!$G$5","v":"A6.1"},null,{"$f":"'E06'!$I$5","v":"Disponibilidad de personal de salud pública con competencias y destrezas relevantes para la resiliencia ante desastres."},0,{"$f":"OFFSET('E06'!$E$1,MATCH(C137,'E06'!G:G,0)+3,0)","v":0}]
[null,"E6",{"$f":"'E06'!$G$18","v":"A6.2"},null,{"$f":"'E06'!$I$18","v":"Socialización de datos sobre el sistema de salud pública con otros grupos interesados. "},0,{"$f":"OFFSET('E06'!$E$1,MATCH(C138,'E06'!G:G,0)+3,0)","v":0}]
[null,"E6",{"$f":"'E06'!$G$31","v":"A6.2.1"},null,{"$f":"'E06'!$I$31","v":"Socialización de otros datos con los grupos interesados en el sistema de salud pública."},0,{"$f":"OFFSET('E06'!$E$1,MATCH(C139,'E06'!G:G,0)+3,0)","v":0}]
[null,"E6",{"$f":"'E06'!$G$44","v":"A6.2.2"},null,{"$f":"'E06'!$I$44","v":"Protección y acceso a registros individuales de salud."},0,{"$f":"OFFSET('E06'!$E$1,MATCH(C140,'E06'!G:G,0)+3,0)","v":0}]
[null,"E7",{"$f":"'E07'!$G$5","v":"A7.1"},null,{"$f":"'E07'!$I$5","v":"Eficacia del sistema de salud pública para hacer partícipe a la comunidad en el contexto de la gestión del riesgo de desastres. "},0,{"$f":"OFFSET('E07'!$E$1,MATCH(C141,'E07'!G:G,0)+3,0)","v":0}]
[null,"E7",{"$f":"'E07'!$G$18","v":"A7.1.2"},null,{"$f":"'E07'!$I$18","v":"Acceso comunitario y confianza en la información sobre salud pública."},0,{"$f":"OFFSET('E07'!$E$1,MATCH(C142,'E07'!G:G,0)+3,0)","v":0}]
[null,"E7",{"$f":"'E07'!$G$31","v":"A7.2"},null,{"$f":"'E07'!$I$31","v":"Habilidad de la comunidad para “regresar a la normalidad” — salud mental."},0,{"$f":"OFFSET('E07'!$E$1,MATCH(C143,'E07'!G:G,0)+3,0)","v":0}]
[null,"E8",{"$f":"'E08'!$G$5","v":"A8.1"},null,{"$f":"'E08'!$I$5","v":"Fortalecimiento de los elementos estructurales y no estructurales de seguridad y funcionalidad de la infraestructura de salud pública que no se toman en consideración en el aspecto esencial 8. "},0,{"$f":"OFFSET('E08'!$E$1,MATCH(C144,'E08'!G:G,0)+3,0)","v":0}]
[null,"E8",{"$f":"'E08'!$G$18","v":"A8.2"},null,{"$f":"'E08'!$I$18","v":"Capacidad de reacción para la infraestructura de salud pública, cuando no se toman en consideración bajo el aspecto esencial 8."},{"$f":"IF(G145=\"\",0,IF(G145=0,0,6-G145))","v":0},{"$f":"OFFSET('E08'!$E$1,MATCH(C145,'E08'!G:G,0)+3,0)","v":0}]
[null,"E8",{"$f":"'E08'!$G$31","v":"A8.3"},null,{"$f":"'E08'!$I$31","v":"Continuidad de la atención a aquellas personas que ya están enfermas, cuando no se tengan en cuenta en el aspecto esencial 8. "},0,{"$f":"OFFSET('E08'!$E$1,MATCH(C146,'E08'!G:G,0)+3,0)","v":0}]
[null,"E9",{"$f":"'E09'!$G$5","v":"A9.1"},null,{"$f":"'E09'!$I$5","v":"Sistemas de alerta temprana para emergencias relacionadas con la salud "},0,{"$f":"OFFSET('E09'!$E$1,MATCH(C147,'E09'!G:G,0)+3,0)","v":0}]
[null,"E9",{"$f":"'E09'!$G$18","v":"A9.2"},null,{"$f":"'E09'!$I$18","v":"Integración de la salud pública en la gestión de emergencias. "},0,{"$f":"OFFSET('E09'!$E$1,MATCH(C148,'E09'!G:G,0)+3,0)","v":0}]
[null,"E9",{"$f":"'E09'!$G$31","v":"A9.3"},null,{"$f":"'E09'!$I$31","v":"Consideración de las poblaciones en mayor riesgo o de aquellas personas que viven en el hogar con condiciones preexistentes. "},0,{"$f":"OFFSET('E09'!$E$1,MATCH(C149,'E09'!G:G,0)+3,0)","v":0}]
[null,"E9",{"$f":"'E09'!$G$44","v":"A9.4"},null,{"$f":"'E09'!$I$44","v":"Habilidad de entregar suministros de salud pública a personas con necesidades. "},0,{"$f":"OFFSET('E09'!$E$1,MATCH(C150,'E09'!G:G,0)+3,0)","v":0}]
[null,"E10",{"$f":"'E10'!$G$5","v":"A10.1"},null,{"$f":"'E10'!$I$5","v":"Mitigación de los impactos a largo plazo en el bienestar y la salud pública."},0,{"$f":"OFFSET('E10'!$E$1,MATCH(C151,'E10'!G:G,0)+3,0)","v":0}]
[null,"E10",{"$f":"'E10'!$G$18","v":"A10.2"},null,{"$f":"'E10'!$I$18","v":"Aprendizaje y mejoramiento."},0,{"$f":"OFFSET('E10'!$E$1,MATCH(C152,'E10'!G:G,0)+3,0)","v":0}]

{"sheet":"E01","index":3,"n_rows":15,"n_cols":9,"rows_kept":15,"cut":false,"hidden":false,"merged":[[7,2,7,3],[8,2,13,3],[5,2,5,3],[6,2,6,3]]}
["a"]
[]
[null,"A.1 Integración de la salud pública y la gobernabilidad (aspecto esencial 1)",null,null,null,null,"A.1",null,"Integración de la salud pública y la gobernabilidad (aspecto esencial 1)"]
[]
[null,"A.1.1 El sector de la salud forma parte de la gobernabilidad para la gestión multisectorial del riesgo.",null,null,null,null,"A1.1",null,"El sector de la salud forma parte de la gobernabilidad para la gestión multisectorial del riesgo."]
[null,"Pregunta/área de evaluación","Comentarios"]
[]
[null,"Respuesta","Incluya medios de verificación (explicación y evidencia)"]
[null,null,null,null,null,{"$f":"IF(E9=1,TRUE,FALSE)","v":false}]
[null,null,null,null,null,{"$f":"IF(E9=2,TRUE,FALSE)","v":false}]
[null,null,null,null,null,{"$f":"IF(E9=3,TRUE,FALSE)","v":false}]
[null,null,null,null,null,{"$f":"IF(E9=4,TRUE,FALSE)","v":false}]
[null,null,null,null,null,{"$f":"IF(E9=5,TRUE,FALSE)","v":false}]
[null,null,null,null,null,{"$f":"IF(E9=6,TRUE,FALSE)","v":false}]
[null,"Acciones para lograr el máximo grado de resiliencia","Institución responsable","Plazo"]

{"sheet":"E02","index":4,"n_rows":41,"n_cols":9,"rows_kept":41,"cut":false,"hidden":false,"merged":[[5,2,5,3],[6,2,6,3],[7,2,7,3],[18,2,18,3],[19,2,19,3],[20,2,20,3],[8,2,13,3],[21,2,26,3],[34,2,39,3],[31,2,31,3],[32,2,32,3],[33,2,33,3]]}
[]
[]
[null,"A.2 Integración de la salud pública y los escenarios de desastres (aspecto esencial 2)",null,null,null,null,"A.2",null,"Integración de la salud pública y los escenarios de desastres (aspecto esencial 2)"]
[]
[null,"A2.1 Inclusión de un amplio abanico de emergencias y los desastres (por ejemplo, brotes epidémicos, pandemias, hambrunas, escasez de agua, etc.) como un escenario de desastre por sí mismo. ",null,null,null,null,"A2.1",null,"Inclusión de un amplio abanico de emergencias y los desastres (por ejemplo, brotes epidémicos, pandemias, hambrunas, escasez de agua, etc.) como un escenario de desastre por sí mismo. "]
[null,"Pregunta/área de evaluación","Comentarios"]
[]
[null,"Respuesta","Incluya medios de verificación (explicación y evidencia)"]
[null,null,null,null,null,{"$f":"IF(E9=1,TRUE,FALSE)","v":false}]
[null,null,null,null,null,{"$f":"IF(E9=2,TRUE,FALSE)","v":false}]
[null,null,null,null,null,{"$f":"IF(E9=3,TRUE,FALSE)","v":false}]
[null,null,null,null,null,{"$f":"IF(E9=4,TRUE,FALSE)","v":false}]
[null,null,null,null,null,{"$f":"IF(E9=5,TRUE,FALSE)","v":false}]
[null,null,null,null,null,{"$f":"IF(E9=6,TRUE,FALSE)","v":false}]
[null,"Acciones para lograr el máximo grado de resiliencia","Institución responsable","Plazo"]
[]
[]
[null,"A2.2 Inclusión de los efectos predecibles en la salud pública, a partir de otros escenarios del riesgo de desastres (tales como inundaciones, olas de calor y terremotos). ",null,null,null,null,"A2.2",null,"Inclusión de los efectos predecibles en la salud pública, a partir de otros escenarios del riesgo de desastres (tales como inundaciones, olas de calor y terremotos). "]
[null,"Pregunta/área de evaluación","Comentarios"]
[]
[null,"Respuesta","Incluya medios de verificación (explicación y evidencia)"]
[null,null,null,null,null,{"$f":"IF(E22=1,TRUE,FALSE)","v":false}]
[null,null,null,null,null,{"$f":"IF(E22=2,TRUE,FALSE)","v":false}]
[null,null,null,null,null,{"$f":"IF(E22=3,TRUE,FALSE)","v":false}]
[null,null,null,null,null,{"$f":"IF(E22=4,TRUE,FALSE)","v":false}]
[null,null,null,null,null,{"$f":"IF(E22=5,TRUE,FALSE)","v":false}]
[null,null,null,null,null,{"$f":"IF(E22=6,TRUE,FALSE)","v":false}]
[null,"Acciones para lograr el máximo grado de resiliencia","Institución responsable","Plazo"]
[]
[]
[null,"A2.3 Inclusión de enfermedades crónicas preexistentes, incluidas enfermedades no transmisible, en la planificación en caso de desastres.",null,null,null,null,"A2.3",null,"Inclusión de enfermedades crónicas preexistentes, incluidas enfermedades no transmisible, en la planificación en caso de desastres."]
[null,"Pregunta/área de evaluación","Comentarios"]
[]
[null,"Respuesta","Incluya medios de verificación (explicación y evidencia)"]
[null,null,null,null,null,{"$f":"IF(E35=1,TRUE,FALSE)","v":false}]
[null,null,null,null,null,{"$f":"IF(E35=2,TRUE,FALSE)","v":false}]
[null,null,null,null,null,{"$f":"IF(E35=3,TRUE,FALSE)","v":false}]
[null,null,null,null,null,{"$f":"IF(E35=4,TRUE,FALSE)","v":false}]
[null,null,null,null,null,{"$f":"IF(E35=5,TRUE,FALSE)","v":false}]
[null,null,null,null,null,{"$f":"IF(E35=6,TRUE,FALSE)","v":false}]
[null,"Acciones para lograr el máximo grado de resiliencia","Institución responsable","Plazo"]

{"sheet":"E03","index":5,"n_rows":15,"n_cols":9,"rows_kept":15,"cut":false,"hidden":false,"merged":[[4,1,4,3],[5,2,5,3],[6,2,6,3],[7,2,7,3],[8,2,13,3]]}
[]
[]
[null,"A3 Integración de la salud pública y las finanzas (aspecto esencial 3)",null,null,null,null,"A3",null,"Integración de la salud pública y las finanzas (aspecto esencial 3)"]
[]
[null,"A3.1 Financiamiento para los aspectos de resiliencia de la salud pública.",null,null,null,null,"A3.1",null,"Financiamiento para los aspectos de resiliencia de la salud pública."]
[null,"Pregunta/área de evaluación","Comentarios"]
[]
[null,"Respuesta","Incluya medios de verificación (explicación y evidencia)"]
[null,null,null,null,null,{"$f":"IF(E9=1,TRUE,FALSE)","v":false}]
[null,null,null,null,null,{"$f":"IF(E9=2,TRUE,FALSE)","v":false}]
[null,null,null,null,null,{"$f":"IF(E9=3,TRUE,FALSE)","v":false}]
[null,null,null,null,null,{"$f":"IF(E9=4,TRUE,FALSE)","v":false}]
[null,null,null,null,null,{"$f":"IF(E9=5,TRUE,FALSE)","v":false}]
[null,null,null,null,null,{"$f":"IF(E9=6,TRUE,FALSE)","v":false}]
[null,"Acciones para lograr el máximo grado de resiliencia","Institución responsable","Plazo"]

{"sheet":"E04","index":6,"n_rows":15,"n_cols":9,"rows_kept":15,"cut":false,"hidden":false,"merged":[[4,1,4,3],[5,2,5,3],[6,2,6,3],[7,2,7,3],[8,2,13,3]]}
[]
[]
[null,"A4 Integración de la salud pública y los códigos de construcción/ordenamiento territorial (aspecto esencial 4)",null,null,null,null,"A4",null,"Integración de la salud pública y los códigos de construcción/ordenamiento territorial (aspecto esencial 4)"]
[]
[null,"A4.1 Conformidad con los códigos de ordenamiento territorial y construcción resiliente por parte de los principales centros de salud.  ",null,null,null,null,"A4.1",null,"Conformidad con los códigos de ordenamiento territorial y construcción resiliente por parte de los principales centros de salud.  "]
[null,"Pregunta/área de evaluación","Comentarios"]
[]
[null,"Respuesta","Incluya medios de verificación (explicación y evidencia)"]
[null,null,null,null,null,{"$f":"IF(E9=1,TRUE,FALSE)","v":false}]
[null,null,null,null,null,{"$f":"IF(E9=2,TRUE,FALSE)","v":false}]
[null,null,null,null,null,{"$f":"IF(E9=3,TRUE,FALSE)","v":false}]
[null,null,null,null,null,{"$f":"IF(E9=4,TRUE,FALSE)","v":false}]
[null,null,null,null,null,{"$f":"IF(E9=5,TRUE,FALSE)","v":false}]
[null,null,null,null,null,{"$f":"IF(E9=6,TRUE,FALSE)","v":false}]
[null,"Acciones para lograr el máximo grado de resiliencia","Institución responsable","Plazo"]

{"sheet":"E05","index":7,"n_rows":15,"n_cols":9,"rows_kept":15,"cut":false,"hidden":false,"merged":[[4,1,4,3],[5,2,5,3],[6,2,6,3],[7,2,7,3],[8,2,13,3]]}
[]
[]
[null,"A5 Gestión de servicios de los ecosistemas que repercuten en la salud pública (aspecto esencial 5)",null,null,null,null,"A5",null,"Gestión de servicios de los ecosistemas que repercuten en la salud pública (aspecto esencial 5)"]
[]
[null,"A5.1 Preservación y gestión de servicios de ecosistemas que ofrecen beneficios a la salud pública. ",null,null,null,null,"A5.1",null,"Preservación y gestión de servicios de ecosistemas que ofrecen beneficios a la salud pública. "]
[null,"Pregunta/área de evaluación","Comentarios"]
[]
[null,"Respuesta","Incluya medios de verificación (explicación y evidencia)"]
[null,null,null,null,null,{"$f":"IF(E9=1,TRUE,FALSE)","v":false}]
[null,null,null,null,null,{"$f":"IF(E9=2,TRUE,FALSE)","v":false}]
[null,null,null,null,null,{"$f":"IF(E9=3,TRUE,FALSE)","v":false}]
[null,null,null,null,null,{"$f":"IF(E9=4,TRUE,FALSE)","v":false}]
[null,null,null,null,null,{"$f":"IF(E9=5,TRUE,FALSE)","v":false}]
[null,null,null,null,null,{"$f":"IF(E9=6,TRUE,FALSE)","v":false}]
[null,"Acciones para lograr el máximo grado de resiliencia","Institución responsable","Plazo"]

{"sheet":"E06","index":8,"n_rows":54,"n_cols":9,"rows_kept":54,"cut":false,"hidden":false,"merged":[[4,1,4,3],[5,2,5,3],[6,2,6,3],[7,2,7,3],[17,1,17,3],[8,2,13,3],[18,2,18,3],[47,2,52,3],[34,2,39,3],[21,2,26,3],[19,2,19,3],[20,2,20,3],[30,1,30,3],[31,2,31,3],[32,2,32,3],[33,2,33,3],[43,1,43,3],[44,2,44,3],[45,2,45,3],[46,2,46,3]]}
[]
[]
[null,"A6 Integración de la salud pública y capacidad institucional (aspecto esencial 6)",null,null,null,null,"A6",null,"Integración de la salud pública y capacidad institucional (aspecto esencial 6)"]
[]
[null,"A6.1 Disponibilidad de personal de salud pública con competencias y destrezas relevantes para la resiliencia ante desastres.",null,null,null,null,"A6.1",null,"Disponibilidad de personal de salud pública con competencias y destrezas relevantes para la resiliencia ante desastres."]
[null,"Pregunta/área de evaluación","Comentarios"]
[]
[null,"Respuesta","Incluya medios de verificación (explicación y evidencia)"]
[null,null,null,null,null,{"$f":"IF(E9=1,TRUE,FALSE)","v":false}]
[null,null,null,null,null,{"$f":"IF(E9=2,TRUE,FALSE)","v":false}]
[null,null,null,null,null,{"$f":"IF(E9=3,TRUE,FALSE)","v":false}]
[null,null,null,null,null,{"$f":"IF(E9=4,TRUE,FALSE)","v":false}]
[null,null,null,null,null,{"$f":"IF(E9=5,TRUE,FALSE)","v":false}]
[null,null,null,null,null,{"$f":"IF(E9=6,TRUE,FALSE)","v":false}]
[null,"Acciones para lograr el máximo grado de resiliencia","Institución responsable","Plazo"]
[]
[]
[null,"A6.2 Socialización de datos sobre el sistema de salud pública con otros grupos interesados. ",null,null,null,null,"A6.2",null,"Socialización de datos sobre el sistema de salud pública con otros grupos interesados. "]
[null,"Pregunta/área de evaluación","Comentarios"]
[]
[null,"Respuesta","Incluya medios de verificación (explicación y evidencia)"]
[null,null,null,null,null,{"$f":"IF(E22=1,TRUE,FALSE)","v":false}]
[null,null,null,null,null,{"$f":"IF(E22=2,TRUE,FALSE)","v":false}]
[null,null,null,null,null,{"$f":"IF(E22=3,TRUE,FALSE)","v":false}]
[null,null,null,null,null,{"$f":"IF(E22=4,TRUE,FALSE)","v":false}]
[null,null,null,null,null,{"$f":"IF(E22=5,TRUE,FALSE)","v":false}]
[null,null,null,null,null,{"$f":"IF(E22=6,TRUE,FALSE)","v":false}]
[null,"Acciones para lograr el máximo grado de resiliencia","Institución responsable","Plazo"]
[]
[]
[null,"A6.2.1 Socialización de otros datos con los grupos interesados en el sistema de salud pública.",null,null,null,null,"A6.2.1",null,"Socialización de otros datos con los grupos interesados en el sistema de salud pública."]
[null,"Pregunta/área de evaluación","Comentarios"]
[]
[null,"Respuesta","Incluya medios de verificación (explicación y evidencia)"]
[null,null,null,null,null,{"$f":"IF(E35=1,TRUE,FALSE)","v":false}]
[null,null,null,null,null,{"$f":"IF(E35=2,TRUE,FALSE)","v":false}]
[null,null,null,null,null,{"$f":"IF(E35=3,TRUE,FALSE)","v":false}]
[null,null,null,null,null,{"$f":"IF(E35=4,TRUE,FALSE)","v":false}]
[null,null,null,null,null,{"$f":"IF(E35=5,TRUE,FALSE)","v":false}]
[null,null,null,null,null,{"$f":"IF(E35=6,TRUE,FALSE)","v":false}]
[null,"Acciones para lograr el máximo grado de resiliencia","Institución responsable","Plazo"]
[]
[]
[null,"A6.2.2 Protección y acceso a registros individuales de salud.",null,null,null,null,"A6.2.2",null,"Protección y acceso a registros individuales de salud."]
[null,"Pregunta/área de evaluación","Comentarios"]
[]
[null,"Respuesta","Incluya medios de verificación (explicación y evidencia)"]
[null,null,null,null,null,{"$f":"IF(E48=1,TRUE,FALSE)","v":false}]
[null,null,null,null,null,{"$f":"IF(E48=2,TRUE,FALSE)","v":false}]
[null,null,null,null,null,{"$f":"IF(E48=3,TRUE,FALSE)","v":false}]
[null,null,null,null,null,{"$f":"IF(E48=4,TRUE,FALSE)","v":false}]
[null,null,null,null,null,{"$f":"IF(E48=5,TRUE,FALSE)","v":false}]
[null,null,null,null,null,{"$f":"IF(E48=6,TRUE,FALSE)","v":false}]
[null,"Acciones para lograr el máximo grado de resiliencia","Institución responsable","Plazo"]

{"sheet":"E07","index":9,"n_rows":43,"n_cols":9,"rows_kept":43,"cut":false,"hidden":false,"merged":[[4,1,4,3],[5,2,5,3],[6,2,6,3],[7,2,7,3],[17,1,17,3],[18,2,18,3],[8,2,13,3],[21,2,26,3],[34,2,39,3],[19,2,19,3],[20,2,20,3],[30,1,30,3],[31,2,31,3],[32,2,32,3],[33,2,33,3]]}
[]
[]
[null,"A7 Integración de la salud pública y capacidad de la sociedad (aspecto esencial 7)",null,null,null,null,"A7",null,"Integración de la salud pública y capacidad de la sociedad (aspecto esencial 7)"]
[null,null,null,null,null,null,""]
[null,"A7.1 Eficacia del sistema de salud pública para hacer partícipe a la comunidad en el contexto de la gestión del riesgo de desastres. ",null,null,null,null,"A7.1",null,"Eficacia del sistema de salud pública para hacer partícipe a la comunidad en el contexto de la gestión del riesgo de desastres. "]
[null,"Pregunta/área de evaluación","Comentarios",null,null,null,""]
[null,null,null,null,null,null,""]
[null,"Respuesta","Incluya medios de verificación (explicación y evidencia)",null,null,null,""]
[null,null,null,null,null,{"$f":"IF(E9=1,TRUE,FALSE)","v":false},""]
[null,null,null,null,null,{"$f":"IF(E9=2,TRUE,FALSE)","v":false},""]
[null,null,null,null,null,{"$f":"IF(E9=3,TRUE,FALSE)","v":false},""]
[null,null,null,null,null,{"$f":"IF(E9=4,TRUE,FALSE)","v":false},""]
[null,null,null,null,null,{"$f":"IF(E9=5,TRUE,FALSE)","v":false},""]
[null,null,null,null,null,{"$f":"IF(E9=6,TRUE,FALSE)","v":false},""]
[null,"Acciones para lograr el máximo grado de resiliencia","Institución responsable","Plazo",null,null,""]
[null,null,null,null,null,null,""]
[null,null,null,null,null,null,""]
[null,"A7.1.2 Acceso comunitario y confianza en la información sobre salud pública.",null,null,null,null,"A7.1.2",null,"Acceso comunitario y confianza en la información sobre salud pública."]
[null,"Pregunta/área de evaluación","Comentarios",null,null,null,""]
[null,null,null,null,null,null,""]
[null,"Respuesta","Incluya medios de verificación (explicación y evidencia)",null,null,null,""]
[null,null,null,null,null,{"$f":"IF(E22=1,TRUE,FALSE)","v":false},""]
[null,null,null,null,null,{"$f":"IF(E22=2,TRUE,FALSE)","v":false},""]
[null,null,null,null,null,{"$f":"IF(E22=3,TRUE,FALSE)","v":false},""]
[null,null,null,null,null,{"$f":"IF(E22=4,TRUE,FALSE)","v":false},""]
[null,null,null,null,null,{"$f":"IF(E22=5,TRUE,FALSE)","v":false},""]
[null,null,null,null,null,{"$f":"IF(E22=6,TRUE,FALSE)","v":false},""]
[null,"Acciones para lograr el máximo grado de resiliencia","Institución responsable","Plazo",null,null,""]
[null,null,null,null,null,null,""]
[null,null,null,null,null,null,""]
[null,"A7.2 Habilidad de la comunidad para “regresar a la normalidad” — salud mental.",null,null,null,null,"A7.2",null,"Habilidad de la comunidad para “regresar a la normalidad” — salud mental."]
[null,"Pregunta/área de evaluación","Comentarios",null,null,null,""]
[null,null,null,null,null,null,""]
[null,"Respuesta","Incluya medios de verificación (explicación y evidencia)",null,null,null,""]
[null,null,null,null,null,{"$f":"IF(E35=1,TRUE,FALSE)","v":false},""]
[null,null,null,null,null,{"$f":"IF(E35=2,TRUE,FALSE)","v":false},""]
[null,null,null,null,null,{"$f":"IF(E35=3,TRUE,FALSE)","v":false},""]
[null,null,null,null,null,{"$f":"IF(E35=4,TRUE,FALSE)","v":false},""]
[null,null,null,null,null,{"$f":"IF(E35=5,TRUE,FALSE)","v":false},""]
[null,null,null,null,null,{"$f":"IF(E35=6,TRUE,FALSE)","v":false},""]
[null,"Acciones para lograr el máximo grado de resiliencia","Institución responsable","Plazo",null,null,""]
[null,null,null,null,null,null,""]
[null,null,null,null,null,null,""]

{"sheet":"E08","index":10,"n_rows":43,"n_cols":9,"rows_kept":43,"cut":false,"hidden":false,"merged":[[34,2,39,3],[21,2,26,3],[8,2,13,3],[33,2,33,3],[4,1,4,3],[5,2,5,3],[6,2,6,3],[7,2,7,3],[17,1,17,3],[18,2,18,3],[19,2,19,3],[20,2,20,3],[30,1,30,3],[31,2,31,3],[32,2,32,3]]}
[]
[]
[null,"A8 Integración de la salud pública y resiliencia de la infraestructura (aspecto esencial 8)",null,null,null,null,"A8",null,"Integración de la salud pública y resiliencia de la infraestructura (aspecto esencial 8)"]
[null,null,null,null,null,null,""]
[null,"A8.1 Fortalecimiento de los elementos estructurales y no estructurales de seguridad y funcionalidad de la infraestructura de salud pública que no se toman en consideración en el aspecto esencial 8. ",null,null,null,null,"A8.1",null,"Fortalecimiento de los elementos estructurales y no estructurales de seguridad y funcionalidad de la infraestructura de salud pública que no se toman en consideración en el aspecto esencial 8. "]
[null,"Pregunta/área de evaluación","Comentarios",null,null,null,""]
[null,null,null,null,null,null,""]
[null,"Respuesta","Incluya medios de verificación (explicación y evidencia)",null,null,null,""]
[null,null,null,null,null,{"$f":"IF(E9=1,TRUE,FALSE)","v":false},""]
[null,null,null,null,null,{"$f":"IF(E9=2,TRUE,FALSE)","v":false},""]
[null,null,null,null,null,{"$f":"IF(E9=3,TRUE,FALSE)","v":false},""]
[null,null,null,null,null,{"$f":"IF(E9=4,TRUE,FALSE)","v":false},""]
[null,null,null,null,null,{"$f":"IF(E9=5,TRUE,FALSE)","v":false},""]
[null,null,null,null,null,{"$f":"IF(E9=6,TRUE,FALSE)","v":false},""]
[null,"Acciones para lograr el máximo grado de resiliencia","Institución responsable","Plazo",null,null,""]
[null,null,null,null,null,null,""]
[null,null,null,null,null,null,""]
[null,"A8.2 Capacidad de reacción para la infraestructura de salud pública, cuando no se toman en consideración bajo el aspecto esencial 8.",null,null,null,null,"A8.2",null,"Capacidad de reacción para la infraestructura de salud pública, cuando no se toman en consideración bajo el aspecto esencial 8."]
[null,"Pregunta/área de evaluación","Comentarios",null,null,null,""]
[null,null,null,null,null,null,""]
[null,"Respuesta","Incluya medios de verificación (explicación y evidencia)",null,null,null,""]
[null,null,null,null,null,{"$f":"IF(E22=1,TRUE,FALSE)","v":false},""]
[null,null,null,null,null,{"$f":"IF(E22=2,TRUE,FALSE)","v":false},""]
[null,null,null,null,null,{"$f":"IF(E22=3,TRUE,FALSE)","v":false},""]
[null,null,null,null,null,{"$f":"IF(E22=4,TRUE,FALSE)","v":false},""]
[null,null,null,null,null,{"$f":"IF(E22=5,TRUE,FALSE)","v":false},""]
[null,null,null,null,null,{"$f":"IF(E22=6,TRUE,FALSE)","v":false},""]
[null,"Acciones para lograr el máximo grado de resiliencia","Institución responsable","Plazo",null,null,""]
[null,null,null,null,null,null,""]
[null,null,null,null,null,null,""]
[null,"A8.3 Continuidad de la atención a aquellas personas que ya están enfermas, cuando no se tengan en cuenta en el aspecto esencial 8. ",null,null,null,null,"A8.3",null,"Continuidad de la atención a aquellas personas que ya están enfermas, cuando no se tengan en cuenta en el aspecto esencial 8. "]
[null,"Pregunta/área de evaluación","Comentarios",null,null,null,""]
[null,null,null,null,null,null,""]
[null,"Respuesta","Incluya medios de verificación (explicación y evidencia)",null,null,null,""]
[null,null,null,null,null,{"$f":"IF(E35=1,TRUE,FALSE)","v":false},""]
[null,null,null,null,null,{"$f":"IF(E35=2,TRUE,FALSE)","v":false},""]
[null,null,null,null,null,{"$f":"IF(E35=3,TRUE,FALSE)","v":false},""]
[null,null,null,null,null,{"$f":"IF(E35=4,TRUE,FALSE)","v":false},""]
[null,null,null,null,null,{"$f":"IF(E35=5,TRUE,FALSE)","v":false},""]
[null,null,null,null,null,{"$f":"IF(E35=6,TRUE,FALSE)","v":false},""]
[null,"Acciones para lograr el máximo grado de resiliencia","Institución responsable","Plazo",null,null,""]
[null,null,null,null,null,null,""]
[null,null,null,null,null,null,""]

{"sheet":"E09","index":11,"n_rows":56,"n_cols":9,"rows_kept":56,"cut":false,"hidden":false,"merged":[[47,2,52,3],[34,2,39,3],[21,2,26,3],[30,1,30,3],[31,2,31,3],[32,2,32,3],[33,2,33,3],[43,1,43,3],[44,2,44,3],[45,2,45,3],[46,2,46,3],[19,2,19,3],[20,2,20,3],[4,1,4,3],[5,2,5,3],[6,2,6,3],[7,2,7,3],[17,1,17,3],[18,2,18,3],[8,2,13,3]]}
[]
[]
[null,"A9 Integración de la salud pública y respuesta en caso de desastres (aspecto esencial 9)",null,null,null,null,"A9",null,"Integración de la salud pública y respuesta en caso de desastres (aspecto esencial 9)"]
[null,null,null,null,null,null,""]
[null,"A9.1 Sistemas de alerta temprana para emergencias relacionadas con la salud ",null,null,null,null,"A9.1",null,"Sistemas de alerta temprana para emergencias relacionadas con la salud "]
[null,"Pregunta/área de evaluación","Comentarios",null,null,null,""]
[null,null,null,null,null,null,""]
[null,"Respuesta","Incluya medios de verificación (explicación y evidencia)",null,null,null,""]
[null,null,null,null,null,{"$f":"IF(E9=1,TRUE,FALSE)","v":false},""]
[null,null,null,null,null,{"$f":"IF(E9=2,TRUE,FALSE)","v":false},""]
[null,null,null,null,null,{"$f":"IF(E9=3,TRUE,FALSE)","v":false},""]
[null,null,null,null,null,{"$f":"IF(E9=4,TRUE,FALSE)","v":false},""]
[null,null,null,null,null,{"$f":"IF(E9=5,TRUE,FALSE)","v":false},""]
[null,null,null,null,null,{"$f":"IF(E9=6,TRUE,FALSE)","v":false},""]
[null,"Acciones para lograr el máximo grado de resiliencia","Institución responsable","Plazo",null,null,""]
[null,null,null,null,null,null,""]
[null,null,null,null,null,null,""]
[null,"A9.2 Integración de la salud pública en la gestión de emergencias. ",null,null,null,null,"A9.2",null,"Integración de la salud pública en la gestión de emergencias. "]
[null,"Pregunta/área de evaluación","Comentarios",null,null,null,""]
[null,null,null,null,null,null,""]
[null,"Respuesta","Incluya medios de verificación (explicación y evidencia)",null,null,null,""]
[null,null,null,null,null,{"$f":"IF(E22=1,TRUE,FALSE)","v":false},""]
[null,null,null,null,null,{"$f":"IF(E22=2,TRUE,FALSE)","v":false},""]
[null,null,null,null,null,{"$f":"IF(E22=3,TRUE,FALSE)","v":false},""]
[null,null,null,null,null,{"$f":"IF(E22=4,TRUE,FALSE)","v":false},""]
[null,null,null,null,null,{"$f":"IF(E22=5,TRUE,FALSE)","v":false},""]
[null,null,null,null,null,{"$f":"IF(E22=6,TRUE,FALSE)","v":false},""]
[null,"Acciones para lograr el máximo grado de resiliencia","Institución responsable","Plazo",null,null,""]
[null,null,null,null,null,null,""]
[null,null,null,null,null,null,""]
[null,"A9.3 Consideración de las poblaciones en mayor riesgo o de aquellas personas que viven en el hogar con condiciones preexistentes. ",null,null,null,null,"A9.3",null,"Consideración de las poblaciones en mayor riesgo o de aquellas personas que viven en el hogar con condiciones preexistentes. "]
[null,"Pregunta/área de evaluación","Comentarios",null,null,null,""]
[null,null,null,null,null,null,""]
[null,"Respuesta","Incluya medios de verificación (explicación y evidencia)",null,null,null,""]
[null,null,null,null,null,{"$f":"IF(E35=1,TRUE,FALSE)","v":false},""]
[null,null,null,null,null,{"$f":"IF(E35=2,TRUE,FALSE)","v":false},""]
[null,null,null,null,null,{"$f":"IF(E35=3,TRUE,FALSE)","v":false},""]
[null,null,null,null,null,{"$f":"IF(E35=4,TRUE,FALSE)","v":false},""]
[null,null,null,null,null,{"$f":"IF(E35=5,TRUE,FALSE)","v":false},""]
[null,null,null,null,null,{"$f":"IF(E35=6,TRUE,FALSE)","v":false},""]
[null,"Acciones para lograr el máximo grado de resiliencia","Institución responsable","Plazo",null,null,""]
[null,null,null,null,null,null,""]
[null,null,null,null,null,null,""]
[null,"A9.4 Habilidad de entregar suministros de salud pública a personas con necesidades. ",null,null,null,null,"A9.4",null,"Habilidad de entregar suministros de salud pública a personas con necesidades. "]
[null,"Pregunta/área de evaluación","Comentarios",null,null,null,""]
[null,null,null,null,null,null,""]
[null,"Respuesta","Incluya medios de verificación (explicación y evidencia)",null,null,null,""]
[null,null,null,null,null,{"$f":"IF(E48=1,TRUE,FALSE)","v":false},""]
[null,null,null,null,null,{"$f":"IF(E48=2,TRUE,FALSE)","v":false},""]
[null,null,null,null,null,{"$f":"IF(E48=3,TRUE,FALSE)","v":false},""]
[null,null,null,null,null,{"$f":"IF(E48=4,TRUE,FALSE)","v":false},""]
[null,null,null,null,null,{"$f":"IF(E48=5,TRUE,FALSE)","v":false},""]
[null,null,null,null,null,{"$f":"IF(E48=6,TRUE,FALSE)","v":false},""]
[null,"Acciones para lograr el máximo grado de resiliencia","Institución responsable","Plazo",null,null,""]
[null,null,null,null,null,null,""]
[null,null,null,null,null,null,""]

{"sheet":"E10","index":12,"n_rows":28,"n_cols":9,"rows_kept":28,"cut":false,"hidden":false,"merged":[[4,1,4,3],[5,2,5,3],[6,2,6,3],[7,2,7,3],[17,1,17,3],[21,2,26,3],[8,2,13,3],[19,2,19,3],[20,2,20,3],[18,2,18,3]]}
[]
[]
[null,"A10 Integración de la salud pública y recuperación/reconstrucción mejor (aspecto esencial 10)",null,null,null,null,"A10",null,"Integración de la salud pública y recuperación/reconstrucción mejor (aspecto esencial 10)"]
[]
[null,"A10.1 Mitigación de los impactos a largo plazo en el bienestar y la salud pública.",null,null,null,null,"A10.1",null,"Mitigación de los impactos a largo plazo en el bienestar y la salud pública."]
[null,"Pregunta/área de evaluación","Comentarios"]
[]
[null,"Respuesta","Incluya medios de verificación (explicación y evidencia)"]
[null,null,null,null,null,{"$f":"IF(E9=1,TRUE,FALSE)","v":false}]
[null,null,null,null,null,{"$f":"IF(E9=2,TRUE,FALSE)","v":false}]
[null,null,null,null,null,{"$f":"IF(E9=3,TRUE,FALSE)","v":false}]
[null,null,null,null,null,{"$f":"IF(E9=4,TRUE,FALSE)","v":false}]
[null,null,null,null,null,{"$f":"IF(E9=5,TRUE,FALSE)","v":false}]
[null,null,null,null,null,{"$f":"IF(E9=6,TRUE,FALSE)","v":false}]
[null,"Acciones para lograr el máximo grado de resiliencia","Institución responsable","Plazo"]
[]
[]
[null,"A10.2 Aprendizaje y mejoramiento.",null,null,null,null,"A10.2",null,"Aprendizaje y mejoramiento."]
[null,"Pregunta/área de evaluación","Comentarios"]
[]
[null,"Respuesta","Incluya medios de verificación (explicación y evidencia)"]
[null,null,null,null,null,{"$f":"IF(E22=1,TRUE,FALSE)","v":false}]
[null,null,null,null,null,{"$f":"IF(E22=2,TRUE,FALSE)","v":false}]
[null,null,null,null,null,{"$f":"IF(E22=3,TRUE,FALSE)","v":false}]
[null,null,null,null,null,{"$f":"IF(E22=4,TRUE,FALSE)","v":false}]
[null,null,null,null,null,{"$f":"IF(E22=5,TRUE,FALSE)","v":false}]
[null,null,null,null,null,{"$f":"IF(E22=6,TRUE,FALSE)","v":false}]
[null,"Acciones para lograr el máximo grado de resiliencia","Institución responsable","Plazo"]

{"sheet":"About","index":13,"n_rows":0,"n_cols":0,"rows_kept":0,"cut":false,"hidden":false,"merged":[]}